{"text_format":"1","workbook":"xlsx","n_sheets":2,"sheets":["Overzicht","Tool"],"not_rendered":{"charts":0,"images":2,"macros":1,"external_links":0,"defined_names":1,"comments":0,"pivot_tables":0},"unopened":[],"bounds":{"document_bytes":16777216,"sheet_cells":100000,"rows_first":2000,"rows_last":500,"rows_between":2000,"halvings":0,"cell_chars":16384,"cell_head_chars":4096},"cells_cut":0,"cells_raw":0,"read":"whole","date_system":"1900"}

{"sheet":"Overzicht","index":0,"n_rows":183,"n_cols":5,"rows_kept":183,"cut":false,"hidden":false,"merged":[]}
["Acceptatie/ Schade/ Inkomen/ Nota","Branche","Indicator","Indicator2","Risicopunten"]
["Acceptatie","Algemeen","Er wordt gevraagd om dekking met terugwerkende kracht te verlenen van meer dan 7 dagen of als dit niet past in de situatie",{"$f":"Table1[[#This Row],[Indicator]] & \" (\" & Table1[[#This Row],[Risicopunten]] & \")\"","v":"Er wordt gevraagd om dekking met terugwerkende kracht te verlenen van meer dan 7 dagen of als dit niet past in de situatie (10)"},10]
["Acceptatie","Algemeen","Adres klopt niet\n- Verzekerde geeft een fictief adres op;\n- Het vestigingsadres of postadres betreft een bijzonder adres (bijvoorbeeld het adres van een instelling\n- Maakt alleen gebruik van een postbus.",{"$f":"Table1[[#This Row],[Indicator]] & \" (\" & Table1[[#This Row],[Risicopunten]] & \")\"","v":"Adres klopt niet\n- Verzekerde geeft een fictief adres op;\n- Het vestigingsadres of postadres betreft een bijzonder adres (bijvoorbeeld het adres van een instelling\n- Maakt alleen gebruik van een postbus. (15)"},15]
["Acceptatie","Algemeen","IVR/EVR\n- EVR-melding, volgmelding, hit op de sanctielijst\n- Verzekerde is intern geregistreerd binnen eigen bestanden / IVR",{"$f":"Table1[[#This Row],[Indicator]] & \" (\" & Table1[[#This Row],[Risicopunten]] & \")\"","v":"IVR/EVR\n- EVR-melding, volgmelding, hit op de sanctielijst\n- Verzekerde is intern geregistreerd binnen eigen bestanden / IVR (10)"},10]
["Acceptatie","Algemeen","Aanvrager/verzekeringnemer geeft aan een strafrechtelijk verleden te hebben",{"$f":"Table1[[#This Row],[Indicator]] & \" (\" & Table1[[#This Row],[Risicopunten]] & \")\"","v":"Aanvrager/verzekeringnemer geeft aan een strafrechtelijk verleden te hebben (15)"},15]
["Acceptatie","Algemeen","(Onbekende) verzekerde vraagt op vrijdagmiddag dekking voor een afwijkend risico",{"$f":"Table1[[#This Row],[Indicator]] & \" (\" & Table1[[#This Row],[Risicopunten]] & \")\"","v":"(Onbekende) verzekerde vraagt op vrijdagmiddag dekking voor een afwijkend risico (10)"},10]
["Acceptatie","Algemeen","Kenteken staat niet op naam van verzekerde en/of langere onverzekerde periode",{"$f":"Table1[[#This Row],[Indicator]] & \" (\" & Table1[[#This Row],[Risicopunten]] & \")\"","v":"Kenteken staat niet op naam van verzekerde en/of langere onverzekerde periode (5)"},5]
["Acceptatie","Algemeen","De verzekerde waarde van bijzondere bezittingen zijn opvallend tov de verzekerde waarde van de inboedel",{"$f":"Table1[[#This Row],[Indicator]] & \" (\" & Table1[[#This Row],[Risicopunten]] & \")\"","v":"De verzekerde waarde van bijzondere bezittingen zijn opvallend tov de verzekerde waarde van de inboedel (5)"},5]
["Acceptatie","Algemeen"," Aanvraagformulier is niet door verzekeringnemer/ tekenbevoegde zelf ondertekend",{"$f":"Table1[[#This Row],[Indicator]] & \" (\" & Table1[[#This Row],[Risicopunten]] & \")\"","v":" Aanvraagformulier is niet door verzekeringnemer/ tekenbevoegde zelf ondertekend (3)"},3]
["Acceptatie","Algemeen"," Groot verschil in datum ontvangst aanvraagformulier en gewenste ingangsdatum",{"$f":"Table1[[#This Row],[Indicator]] & \" (\" & Table1[[#This Row],[Risicopunten]] & \")\"","v":" Groot verschil in datum ontvangst aanvraagformulier en gewenste ingangsdatum (3)"},3]
["Acceptatie","Algemeen"," Aanvraagformulier is onvolledig ingevuld en verzekerde weigert aanvullingen te doen",{"$f":"Table1[[#This Row],[Indicator]] & \" (\" & Table1[[#This Row],[Risicopunten]] & \")\"","v":" Aanvraagformulier is onvolledig ingevuld en verzekerde weigert aanvullingen te doen (10)"},10]
["Acceptatie","Inkomen","Er is sprake van een bedrijfsovername",{"$f":"Table1[[#This Row],[Indicator]] & \" (\" & Table1[[#This Row],[Risicopunten]] & \")\"","v":"Er is sprake van een bedrijfsovername (2)"},2]
["Acceptatie","Inkomen","Er bestaat twijfel over de gezagsverhouding tussen de ondernemer en de werknemer",{"$f":"Table1[[#This Row],[Indicator]] & \" (\" & Table1[[#This Row],[Risicopunten]] & \")\"","v":"Er bestaat twijfel over de gezagsverhouding tussen de ondernemer en de werknemer (10)"},10]
["Acceptatie","Inkomen","Er is sprake van een (anonieme) tip",{"$f":"Table1[[#This Row],[Indicator]] & \" (\" & Table1[[#This Row],[Risicopunten]] & \")\"","v":"Er is sprake van een (anonieme) tip (15)"},15]
["Acceptatie","Inkomen","Er vindt een onlogische wijziging in bedrijfsactiviteiten plaats;",{"$f":"Table1[[#This Row],[Indicator]] & \" (\" & Table1[[#This Row],[Risicopunten]] & \")\"","v":"Er vindt een onlogische wijziging in bedrijfsactiviteiten plaats; (3)"},3]
["Acceptatie","Inkomen","Er is sprake van een speciale melding in de CIS-databank;",{"$f":"Table1[[#This Row],[Indicator]] & \" (\" & Table1[[#This Row],[Risicopunten]] & \")\"","v":"Er is sprake van een speciale melding in de CIS-databank; (15)"},15]
["Acceptatie","Inkomen","De loonsommen zijn veelal hetzelfde bij verschillende leeftijden en/of functies van de werknemers",{"$f":"Table1[[#This Row],[Indicator]] & \" (\" & Table1[[#This Row],[Risicopunten]] & \")\"","v":"De loonsommen zijn veelal hetzelfde bij verschillende leeftijden en/of functies van de werknemers (5)"},5]
["Acceptatie","Inkomen","De loonsom van de werknemer is opmerkelijk hoog ten opzichte van de functie en/of de leeftijd van de werknemer",{"$f":"Table1[[#This Row],[Indicator]] & \" (\" & Table1[[#This Row],[Risicopunten]] & \")\"","v":"De loonsom van de werknemer is opmerkelijk hoog ten opzichte van de functie en/of de leeftijd van de werknemer (10)"},10]
["Acceptatie","Inkomen","Er is sprake van de combinatie van een bedrijf met een zo laag mogelijk eigen risico en een zo hoog mogelijke dekking (o.a. hoogste percentage werkgeverslasten).",{"$f":"Table1[[#This Row],[Indicator]] & \" (\" & Table1[[#This Row],[Risicopunten]] & \")\"","v":"Er is sprake van de combinatie van een bedrijf met een zo laag mogelijk eigen risico en een zo hoog mogelijke dekking (o.a. hoogste percentage werkgeverslasten). (1)"},1]
["Acceptatie","Inkomen","De opgave van het ziekteverzuim over de afgelopen drie jaar ontbreekt of is nihil",{"$f":"Table1[[#This Row],[Indicator]] & \" (\" & Table1[[#This Row],[Risicopunten]] & \")\"","v":"De opgave van het ziekteverzuim over de afgelopen drie jaar ontbreekt of is nihil (5)"},5]
["Acceptatie","Inkomen","De opgave van het ziekteverzuim over de afgelopen drie jaar  is onjuist",{"$f":"Table1[[#This Row],[Indicator]] & \" (\" & Table1[[#This Row],[Risicopunten]] & \")\"","v":"De opgave van het ziekteverzuim over de afgelopen drie jaar  is onjuist (10)"},10]
["Acceptatie","Inkomen","De NAW-gegevens op de aanvraag komen niet overeen met de KvK-inschrijving",{"$f":"Table1[[#This Row],[Indicator]] & \" (\" & Table1[[#This Row],[Risicopunten]] & \")\"","v":"De NAW-gegevens op de aanvraag komen niet overeen met de KvK-inschrijving (3)"},3]
["Acceptatie","Inkomen","De activiteiten of de SBI-codes komen niet overeen met de KvK-inschrijving; ",{"$f":"Table1[[#This Row],[Indicator]] & \" (\" & Table1[[#This Row],[Risicopunten]] & \")\"","v":"De activiteiten of de SBI-codes komen niet overeen met de KvK-inschrijving;  (3)"},3]
["Acceptatie","Inkomen","Er is geen KvK-inschrijving bekend",{"$f":"Table1[[#This Row],[Indicator]] & \" (\" & Table1[[#This Row],[Risicopunten]] & \")\"","v":"Er is geen KvK-inschrijving bekend (10)"},10]
["Acceptatie","Inkomen","Er is sprake van een buitenlandse vennootschap",{"$f":"Table1[[#This Row],[Indicator]] & \" (\" & Table1[[#This Row],[Risicopunten]] & \")\"","v":"Er is sprake van een buitenlandse vennootschap (5)"},5]
["Acceptatie","Inkomen","Het bedrijf bestaat al langere tijd, maar heeft nog nooit een verzuimverzekering gehad",{"$f":"Table1[[#This Row],[Indicator]] & \" (\" & Table1[[#This Row],[Risicopunten]] & \")\"","v":"Het bedrijf bestaat al langere tijd, maar heeft nog nooit een verzuimverzekering gehad (10)"},10]
["Acceptatie","Inkomen","De moraliteitsvragen zijn met JA of niet naar waarheid beantwoord",{"$f":"Table1[[#This Row],[Indicator]] & \" (\" & Table1[[#This Row],[Risicopunten]] & \")\"","v":"De moraliteitsvragen zijn met JA of niet naar waarheid beantwoord (15)"},15]
["Acceptatie","Inkomen","Er is sprake van (een vermoeden van) manipulatie van loonsommen",{"$f":"Table1[[#This Row],[Indicator]] & \" (\" & Table1[[#This Row],[Risicopunten]] & \")\"","v":"Er is sprake van (een vermoeden van) manipulatie van loonsommen (15)"},15]
["Acceptatie","Inkomen","Verzekeringnemer kan (of wil) geen loonstroken of verzamelloonstaten overhandigen",{"$f":"Table1[[#This Row],[Indicator]] & \" (\" & Table1[[#This Row],[Risicopunten]] & \")\"","v":"Verzekeringnemer kan (of wil) geen loonstroken of verzamelloonstaten overhandigen (10)"},10]
["Acceptatie","Inkomen","Er wordt aangegeven dat er sprake is van een starter i.p.v. een doorstarter",{"$f":"Table1[[#This Row],[Indicator]] & \" (\" & Table1[[#This Row],[Risicopunten]] & \")\"","v":"Er wordt aangegeven dat er sprake is van een starter i.p.v. een doorstarter (8)"},8]
["Acceptatie","Inkomen","Er bestaat een grote afstand tussen:\n\tde statutaire zetel van het bedrijf en de (hoofd)vestiging van het bedrijf;\n\thet privéadres van de ondernemer en de (hoofd)vestiging van het bedrijf;\n\tde hoofd(vestiging) en het postbusadres van het bedrijf;\n\thet woonadres van de werknemer en de hoofd(vestiging) van het bedrijf",{"$f":"Table1[[#This Row],[Indicator]] & \" (\" & Table1[[#This Row],[Risicopunten]] & \")\"","v":"Er bestaat een grote afstand tussen:\n\tde statutaire zetel van het bedrijf en de (hoofd)vestiging van het bedrijf;\n\thet privéadres van de ondernemer en de (hoofd)vestiging van het bedrijf;\n\tde hoofd(vestiging) en het postbusadres van het bedrijf;\n\thet woonadres van de werknemer en de hoofd(vestiging) van het bedrijf (5)"},5]
["Acceptatie","Inkomen","Er is sprake van een onderneming zonder website",{"$f":"Table1[[#This Row],[Indicator]] & \" (\" & Table1[[#This Row],[Risicopunten]] & \")\"","v":"Er is sprake van een onderneming zonder website (5)"},5]
["Acceptatie","Inkomen","De tenaamstelling van het bankrekeningnummer komt niet overeen met de naam van het bedrijf;",{"$f":"Table1[[#This Row],[Indicator]] & \" (\" & Table1[[#This Row],[Risicopunten]] & \")\"","v":"De tenaamstelling van het bankrekeningnummer komt niet overeen met de naam van het bedrijf; (10)"},10]
["Acceptatie","Inkomen","Er is sprake van een overgenomen bedrijf",{"$f":"Table1[[#This Row],[Indicator]] & \" (\" & Table1[[#This Row],[Risicopunten]] & \")\"","v":"Er is sprake van een overgenomen bedrijf (2)"},2]
["Acceptatie","Inkomen","Er zijn mediaberichten die belastend zijn",{"$f":"Table1[[#This Row],[Indicator]] & \" (\" & Table1[[#This Row],[Risicopunten]] & \")\"","v":"Er zijn mediaberichten die belastend zijn (10)"},10]
["Acceptatie","Inkomen","Er worden onvolledige/onduidelijke/gecorrigeerde formulieren aangeleverd",{"$f":"Table1[[#This Row],[Indicator]] & \" (\" & Table1[[#This Row],[Risicopunten]] & \")\"","v":"Er worden onvolledige/onduidelijke/gecorrigeerde formulieren aangeleverd (8)"},8]
["Acceptatie","Inkomen","Post komt onbesteld retour terwijl er geen adreswijziging bekend is",{"$f":"Table1[[#This Row],[Indicator]] & \" (\" & Table1[[#This Row],[Risicopunten]] & \")\"","v":"Post komt onbesteld retour terwijl er geen adreswijziging bekend is (3)"},3]
["Acceptatie","Inkomen","Er is sprake van een langdurige zieke werknemer die kort voor de ingangsdatum van de verzekering volledig hersteld is gemeld",{"$f":"Table1[[#This Row],[Indicator]] & \" (\" & Table1[[#This Row],[Risicopunten]] & \")\"","v":"Er is sprake van een langdurige zieke werknemer die kort voor de ingangsdatum van de verzekering volledig hersteld is gemeld (10)"},10]
["Acceptatie","Inkomen","Het acceptatieproces verloopt zeer soepel en snel waarbij verzekeringnemer aandringt op directe ingang van de verzekering",{"$f":"Table1[[#This Row],[Indicator]] & \" (\" & Table1[[#This Row],[Risicopunten]] & \")\"","v":"Het acceptatieproces verloopt zeer soepel en snel waarbij verzekeringnemer aandringt op directe ingang van de verzekering (10)"},10]
["Acceptatie","Inkomen","Er is sprake van een onbekend loonheffings- of BTW-nummer bij de belastingdienst",{"$f":"Table1[[#This Row],[Indicator]] & \" (\" & Table1[[#This Row],[Risicopunten]] & \")\"","v":"Er is sprake van een onbekend loonheffings- of BTW-nummer bij de belastingdienst (15)"},15]
["Schade","Inkomen","Er is sprake van een sterfhuisconstructie (zieke werknemers worden in een ander bedrijf ondergebracht);",{"$f":"Table1[[#This Row],[Indicator]] & \" (\" & Table1[[#This Row],[Risicopunten]] & \")\"","v":"Er is sprake van een sterfhuisconstructie (zieke werknemers worden in een ander bedrijf ondergebracht); (10)"},10]
["Schade","Inkomen","De werknemer staat niet op de verzamelloonstaat van een bepaalde periode terwijl de werknemer in deze periode ziekgemeld is",{"$f":"Table1[[#This Row],[Indicator]] & \" (\" & Table1[[#This Row],[Risicopunten]] & \")\"","v":"De werknemer staat niet op de verzamelloonstaat van een bepaalde periode terwijl de werknemer in deze periode ziekgemeld is (15)"},15]
["Schade","Inkomen","Betrokkene is zelf niet bereikbaar, maar belt wel telkens zelf of belt in het geheel niet terug",{"$f":"Table1[[#This Row],[Indicator]] & \" (\" & Table1[[#This Row],[Risicopunten]] & \")\"","v":"Betrokkene is zelf niet bereikbaar, maar belt wel telkens zelf of belt in het geheel niet terug (8)"},8]
["Schade","Inkomen","Er is sprake van volledig herstel na een langdurige ziekte, zonder voorafgaand deelherstel",{"$f":"Table1[[#This Row],[Indicator]] & \" (\" & Table1[[#This Row],[Risicopunten]] & \")\"","v":"Er is sprake van volledig herstel na een langdurige ziekte, zonder voorafgaand deelherstel (12)"},12]
["Schade","Inkomen","Alle werknemers van een bedrijf zijn ziekgemeld",{"$f":"Table1[[#This Row],[Indicator]] & \" (\" & Table1[[#This Row],[Risicopunten]] & \")\"","v":"Alle werknemers van een bedrijf zijn ziekgemeld (10)"},10]
["Schade","Inkomen","Er zit een groot tijdsverschil tussen de eerste ziektedag en het indienen van de claim;",{"$f":"Table1[[#This Row],[Indicator]] & \" (\" & Table1[[#This Row],[Risicopunten]] & \")\"","v":"Er zit een groot tijdsverschil tussen de eerste ziektedag en het indienen van de claim; (5)"},5]
["Schade","Inkomen","Er wordt gevraagd om een ziekmelding met terugwerkende kracht in behandeling te nemen",{"$f":"Table1[[#This Row],[Indicator]] & \" (\" & Table1[[#This Row],[Risicopunten]] & \")\"","v":"Er wordt gevraagd om een ziekmelding met terugwerkende kracht in behandeling te nemen (5)"},5]
["Schade","Inkomen","Er vindt een salarisverhoging plaats voor/tijdens de arbeidsongeschiktheid",{"$f":"Table1[[#This Row],[Indicator]] & \" (\" & Table1[[#This Row],[Risicopunten]] & \")\"","v":"Er vindt een salarisverhoging plaats voor/tijdens de arbeidsongeschiktheid (10)"},10]
["Schade","Inkomen","Een medewerker wordt ziekgemeld binnen één maand na ingangsdatum van de verzekering of indiensttreding.",{"$f":"Table1[[#This Row],[Indicator]] & \" (\" & Table1[[#This Row],[Risicopunten]] & \")\"","v":"Een medewerker wordt ziekgemeld binnen één maand na ingangsdatum van de verzekering of indiensttreding. (5)"},5]
["Schade","Inkomen","Er is sprake van een hoog salaris ten opzichte van de bedrijfsactiviteiten, functie, startend bedrijf;",{"$f":"Table1[[#This Row],[Indicator]] & \" (\" & Table1[[#This Row],[Risicopunten]] & \")\"","v":"Er is sprake van een hoog salaris ten opzichte van de bedrijfsactiviteiten, functie, startend bedrijf; (8)"},8]
["Schade","Inkomen","De zieke werknemer is familie van de eigenaar",{"$f":"Table1[[#This Row],[Indicator]] & \" (\" & Table1[[#This Row],[Risicopunten]] & \")\"","v":"De zieke werknemer is familie van de eigenaar (8)"},8]
["Schade","Inkomen","De bedrijfsomschrijving en/of de activiteiten zijn recentelijk gewijzigd",{"$f":"Table1[[#This Row],[Indicator]] & \" (\" & Table1[[#This Row],[Risicopunten]] & \")\"","v":"De bedrijfsomschrijving en/of de activiteiten zijn recentelijk gewijzigd (3)"},3]
["Schade","Inkomen","Niet alle personeelsleden zijn opgegeven voor de verzekering;",{"$f":"Table1[[#This Row],[Indicator]] & \" (\" & Table1[[#This Row],[Risicopunten]] & \")\"","v":"Niet alle personeelsleden zijn opgegeven voor de verzekering; (8)"},8]
["Schade","Inkomen","Relatie staat bekend als slechte betaler of het gaat financieel slecht met het bedrijf",{"$f":"Table1[[#This Row],[Indicator]] & \" (\" & Table1[[#This Row],[Risicopunten]] & \")\"","v":"Relatie staat bekend als slechte betaler of het gaat financieel slecht met het bedrijf (5)"},5]
["Schade","Inkomen","De opgegeven datum voor indiensttreding bij de verzekering wijkt af van het arbeidscontract en/of de loonstrook",{"$f":"Table1[[#This Row],[Indicator]] & \" (\" & Table1[[#This Row],[Risicopunten]] & \")\"","v":"De opgegeven datum voor indiensttreding bij de verzekering wijkt af van het arbeidscontract en/of de loonstrook (10)"},10]
["Schade","Inkomen","Er is sprake van een structureel hoog ziekteverzuim in relatie tot het aantal werknemers",{"$f":"Table1[[#This Row],[Indicator]] & \" (\" & Table1[[#This Row],[Risicopunten]] & \")\"","v":"Er is sprake van een structureel hoog ziekteverzuim in relatie tot het aantal werknemers (10)"},10]
["Schade","Inkomen","Er wordt een foutieve loonstrook aangeleverd",{"$f":"Table1[[#This Row],[Indicator]] & \" (\" & Table1[[#This Row],[Risicopunten]] & \")\"","v":"Er wordt een foutieve loonstrook aangeleverd (5)"},5]
["Schade","Inkomen","Er wordt een foutieve of onvolledige verzamelloonstaat aangeleverd",{"$f":"Table1[[#This Row],[Indicator]] & \" (\" & Table1[[#This Row],[Risicopunten]] & \")\"","v":"Er wordt een foutieve of onvolledige verzamelloonstaat aangeleverd (10)"},10]
["Schade","Inkomen","De correspondentie met verzekeringnemer komt van een afwijkend mailadres of een algemeen mailadres (geen @bedrijfsnaam",{"$f":"Table1[[#This Row],[Indicator]] & \" (\" & Table1[[#This Row],[Risicopunten]] & \")\"","v":"De correspondentie met verzekeringnemer komt van een afwijkend mailadres of een algemeen mailadres (geen @bedrijfsnaam (2)"},2]
["Schade","Inkomen","Een onbekende of een derde partij treedt op als belangenbehartiger",{"$f":"Table1[[#This Row],[Indicator]] & \" (\" & Table1[[#This Row],[Risicopunten]] & \")\"","v":"Een onbekende of een derde partij treedt op als belangenbehartiger (3)"},3]
["Schade","Inkomen","Er is sprake van een ongeval in het buitenland\nEen binnenlandse schade onderbouwd met buitenlandse documenten kan dan weer wel aanleiding vormen voor nader onderzoek",{"$f":"Table1[[#This Row],[Indicator]] & \" (\" & Table1[[#This Row],[Risicopunten]] & \")\"","v":"Er is sprake van een ongeval in het buitenland\nEen binnenlandse schade onderbouwd met buitenlandse documenten kan dan weer wel aanleiding vormen voor nader onderzoek (3)"},3]
["Schade","Algemeen","Er bestaat een relatie tussen partijen, voorafgaand aan de schade",{"$f":"Table1[[#This Row],[Indicator]] & \" (\" & Table1[[#This Row],[Risicopunten]] & \")\"","v":"Er bestaat een relatie tussen partijen, voorafgaand aan de schade (2)"},2]
["Schade","Algemeen","Onwaarschijnlijke toedrachtomschrijving",{"$f":"Table1[[#This Row],[Indicator]] & \" (\" & Table1[[#This Row],[Risicopunten]] & \")\"","v":"Onwaarschijnlijke toedrachtomschrijving (5)"},5]
["Schade","Algemeen","SAF: \n- Invulling SAF door tsp. / tsp. treedt op namens tegenpartij\n- Meerdere woordelijk gelijke getuigenverklaringen worden overlegd\n- Opmerkelijke verschillen in de overlegde getuigenverklaring\n-  Verschillen in opgave op aanvraagformulier/SAF\n- is niet volledig ingevuld\n- is p.o. of niet ondertekend",{"$f":"Table1[[#This Row],[Indicator]] & \" (\" & Table1[[#This Row],[Risicopunten]] & \")\"","v":"SAF: \n- Invulling SAF door tsp. / tsp. treedt op namens tegenpartij\n- Meerdere woordelijk gelijke getuigenverklaringen worden overlegd\n- Opmerkelijke verschillen in de overlegde getuigenverklaring\n-  Verschillen in opgave op aanvraagformulier/SAF\n- is niet volledig ingevuld\n- is p.o. of niet ondertekend (10)"},10]
["Schade","Algemeen","Verzekerde treedt (schrift. / mond.) op als woordvoerder namens tegenpartij",{"$f":"Table1[[#This Row],[Indicator]] & \" (\" & Table1[[#This Row],[Risicopunten]] & \")\"","v":"Verzekerde treedt (schrift. / mond.) op als woordvoerder namens tegenpartij (7)"},7]
["Schade","Algemeen","Bijzonderheden klantcontact:\n- Verzekerde dringt herhaaldelijk op een negatieve manier aan op afwikkeling/ agressief telefoongedrag\n- Verzekerde is overdreven goed op de hoogte van de polisvoorwaarden\n- Selectief aanleveren van stukken\n- Beperkt of niet meewerken aan inzenden gevraagde gegevens\n- Verzekerde levert gebrekkige medewerking bij toedrachtonderzoek en/of reconstructie.\n- Wil geen bezoek aan huis\n- Er mag geen contact worden opgenomen met door verzekerde ingeschakelde deskundigen/bureaus\n- Verzekerde heeft bij tussenpersoon/maatschappij kort voor schadedatum geïnformeerd naar omvang dekking\n- Verzekerde is (te) snel bereid om met minder genoegen te nemen\n-  Verzekerde dringt herhaaldelijk aan op een snelle afhandeling of reageert totaal niet\n- Verzekerde neemt zeer regelmatig contact op om te informeren naar de stand van zaken\n- Verzekerde tracht op alle mogelijk manieren schriftelijke communicatie te vermijden en probeert voornamelijk telefonisch of persoonlijk de kwestie te regelen\n-  Verzekerde geeft ontwijkende antwoorden op vragen\n- Verzekerde kan vrijwel direct bij schademelding of politieaangifte een zeer gedetailleerde omschrijving van de vermiste of ontvreemde goederen produceren\n- Verzekerde verdwijnt en laat de schadeafwikkeling aan derden over\n- Verzekerde heeft de tegenpartij zelf al schadeloos gesteld \n- De verzekeringnemer geeft aan nooit eerder verzekerd te zijn geweest, terwijl de\nvestigingsdatum van het bedrijf anders doet vermoeden ",{"$f":"Table1[[#This Row],[Indicator]] & \" (\" & Table1[[#This Row],[Risicopunten]] & \")\"","v":"Bijzonderheden klantcontact:\n- Verzekerde dringt herhaaldelijk op een negatieve manier aan op afwikkeling/ agressief telefoongedrag\n- Verzekerde is overdreven goed op de hoogte van de polisvoorwaarden\n- Selectief aanleveren van stukken\n- Beperkt of niet meewerken aan inzenden gevraagde gegevens\n- Verzekerde levert gebrekkige medewerking bij toedrachtonderzoek en/of reconstructie.\n- Wil geen bezoek aan huis\n- Er mag geen contact worden opgenomen met door verzekerde ingeschakelde deskundigen/bureaus\n- Verzekerde heeft bij tussenpersoon/maatschappij kort voor schadedatum geïnformeerd naar omvang dekking\n- Verzekerde is (te) snel bereid om met minder genoegen te nemen\n-  Verzekerde dringt herhaaldelijk aan op een snelle afhandeling of reageert totaal niet\n- Verzekerde neemt zeer regelmatig contact op om te informeren naar de stand van zaken\n- Verzekerde tracht op alle mogelijk manieren schriftelijke communicatie te vermijden en probeert voornamelijk telefonisch of persoonlijk de kwestie te regelen\n-  Verzekerde geeft ontwijkende antwoorden op vragen\n- Verzekerde kan vrijwel direct bij schademelding of politieaangifte een zeer gedetailleerde omschrijving van de vermiste of ontvreemde goederen produceren\n- Verzekerde verdwijnt en laat de schadeafwikkeling aan derden over\n- Verzekerde heeft de tegenpartij zelf al schadeloos gesteld \n- De verzekeringnemer geeft aan nooit eerder verzekerd te zijn geweest, terwijl de\nvestigingsdatum van het bedrijf anders doet vermoeden  (10)"},10]
["Schade","Algemeen","De schade valt substantieel/ opvallend hoger uit dan in 1e instantie opgegeven door verzekerde",{"$f":"Table1[[#This Row],[Indicator]] & \" (\" & Table1[[#This Row],[Risicopunten]] & \")\"","v":"De schade valt substantieel/ opvallend hoger uit dan in 1e instantie opgegeven door verzekerde (3)"},3]
["Schade","Algemeen","Het schadebedrag is door verzekerde voorgeschoten",{"$f":"Table1[[#This Row],[Indicator]] & \" (\" & Table1[[#This Row],[Risicopunten]] & \")\"","v":"Het schadebedrag is door verzekerde voorgeschoten (2)"},2]
["Schade","Algemeen","Aard beschadigde goederen ",{"$f":"Table1[[#This Row],[Indicator]] & \" (\" & Table1[[#This Row],[Risicopunten]] & \")\"","v":"Aard beschadigde goederen  (3)"},3]
["Schade","Algemeen","Tegenpartij kan geen beroep doen op eigen verzekering (inboedel / opstal)",{"$f":"Table1[[#This Row],[Indicator]] & \" (\" & Table1[[#This Row],[Risicopunten]] & \")\"","v":"Tegenpartij kan geen beroep doen op eigen verzekering (inboedel / opstal) (2)"},2]
["Schade","Algemeen","Tijdstip:\n- De schade vindt plaats binnen 1 jaar na ingangsdatum of wijziging verzekering\n- Schade binnen de termijn van voorlopige dekking",{"$f":"Table1[[#This Row],[Indicator]] & \" (\" & Table1[[#This Row],[Risicopunten]] & \")\"","v":"Tijdstip:\n- De schade vindt plaats binnen 1 jaar na ingangsdatum of wijziging verzekering\n- Schade binnen de termijn van voorlopige dekking (5)"},5]
["Schade","Algemeen","Bewijsvoering:\n- Bewijsvoering ontbreekt in het geheel\n- Zeer gedetailleerde opgave / bewijsvoering overdreven\n- Schade wordt uitsluitend aangetoond door zeer gedetailleerde foto's\n- Zeer gedetailleerde omschrijving van goederen in eerstelijns aangifte\n- Aankoopbewijzen staan niet op naam of op andere naam.\n- Niet inleveren van originele bewijsstukken.",{"$f":"Table1[[#This Row],[Indicator]] & \" (\" & Table1[[#This Row],[Risicopunten]] & \")\"","v":"Bewijsvoering:\n- Bewijsvoering ontbreekt in het geheel\n- Zeer gedetailleerde opgave / bewijsvoering overdreven\n- Schade wordt uitsluitend aangetoond door zeer gedetailleerde foto's\n- Zeer gedetailleerde omschrijving van goederen in eerstelijns aangifte\n- Aankoopbewijzen staan niet op naam of op andere naam.\n- Niet inleveren van originele bewijsstukken. (5)"},5]
["Schade","Algemeen","Locatie:\n- Tijdstip of plaats van het ongeval\n- Schadelocatie buitenland ",{"$f":"Table1[[#This Row],[Indicator]] & \" (\" & Table1[[#This Row],[Risicopunten]] & \")\"","v":"Locatie:\n- Tijdstip of plaats van het ongeval\n- Schadelocatie buitenland  (3)"},3]
["Schade","Algemeen","Geen schadebeperking",{"$f":"Table1[[#This Row],[Indicator]] & \" (\" & Table1[[#This Row],[Risicopunten]] & \")\"","v":"Geen schadebeperking (2)"},2]
["Schade","Algemeen","Verschil in lezing met tegenpartij terwijl beiden het eens zijn over de schuldvraag",{"$f":"Table1[[#This Row],[Indicator]] & \" (\" & Table1[[#This Row],[Risicopunten]] & \")\"","v":"Verschil in lezing met tegenpartij terwijl beiden het eens zijn over de schuldvraag (3)"},3]
["Schade","Algemeen","Komt achteraf met getuigen",{"$f":"Table1[[#This Row],[Indicator]] & \" (\" & Table1[[#This Row],[Risicopunten]] & \")\"","v":"Komt achteraf met getuigen (3)"},3]
["Schade","Algemeen","Tegenpartij is bekend met een recente inboedelschade",{"$f":"Table1[[#This Row],[Indicator]] & \" (\" & Table1[[#This Row],[Risicopunten]] & \")\"","v":"Tegenpartij is bekend met een recente inboedelschade (5)"},5]
["Schade","Algemeen","Dossierpartijen gelijk bij meerdere expertises",{"$f":"Table1[[#This Row],[Indicator]] & \" (\" & Table1[[#This Row],[Risicopunten]] & \")\"","v":"Dossierpartijen gelijk bij meerdere expertises (2)"},2]
["Schade","Algemeen","IVR/EVR\n- EVR-melding, volgmelding, hit op de sanctielijst\n- Verzekerde is intern geregistreerd binnen eigen bestanden / IVR",{"$f":"Table1[[#This Row],[Indicator]] & \" (\" & Table1[[#This Row],[Risicopunten]] & \")\"","v":"IVR/EVR\n- EVR-melding, volgmelding, hit op de sanctielijst\n- Verzekerde is intern geregistreerd binnen eigen bestanden / IVR (15)"},15]
["Schade","Algemeen"," Schadebeeld onwaarschijnlijk, of de verklaringen zijn onlogisch t.o.v. het schadebeeld",{"$f":"Table1[[#This Row],[Indicator]] & \" (\" & Table1[[#This Row],[Risicopunten]] & \")\"","v":" Schadebeeld onwaarschijnlijk, of de verklaringen zijn onlogisch t.o.v. het schadebeeld (5)"},5]
["Schade","Algemeen","Schade is ontstaan kort na:\n− Ingangsdatum verzekering;\n− Verhoging verzekerde som en/of andere risico verhogende mutaties;\n− Wijzigingen in de polisvoorwaarden/clausules;\n− Afsluiting bedrijfsschadeverzekering in aanvulling op lopende inventaris-/goederenverzekering;\n− Omzetting in nieuwwaardeverzekering bij verouderde risico’s;",{"$f":"Table1[[#This Row],[Indicator]] & \" (\" & Table1[[#This Row],[Risicopunten]] & \")\"","v":"Schade is ontstaan kort na:\n− Ingangsdatum verzekering;\n− Verhoging verzekerde som en/of andere risico verhogende mutaties;\n− Wijzigingen in de polisvoorwaarden/clausules;\n− Afsluiting bedrijfsschadeverzekering in aanvulling op lopende inventaris-/goederenverzekering;\n− Omzetting in nieuwwaardeverzekering bij verouderde risico’s; (10)"},10]
["Schade","Algemeen","Bijzonderheden bij de claim:\n- Intrekken van claim na stellen van lastige vragen\n-  De claim wordt voornamelijk onderbouwd met offertes\n- Een soortgelijke claim ook bij een andere maatschappij\n-  Late of extreem late melding van de schade\n- Alle beschadigde delen zijn al vernietigd/afgevoerd",{"$f":"Table1[[#This Row],[Indicator]] & \" (\" & Table1[[#This Row],[Risicopunten]] & \")\"","v":"Bijzonderheden bij de claim:\n- Intrekken van claim na stellen van lastige vragen\n-  De claim wordt voornamelijk onderbouwd met offertes\n- Een soortgelijke claim ook bij een andere maatschappij\n-  Late of extreem late melding van de schade\n- Alle beschadigde delen zijn al vernietigd/afgevoerd (10)"},10]
["Schade","Algemeen","Polis is aangevraagd op een ander bedrijf dan de voorlopige dekking is afgegeven",{"$f":"Table1[[#This Row],[Indicator]] & \" (\" & Table1[[#This Row],[Risicopunten]] & \")\"","v":"Polis is aangevraagd op een ander bedrijf dan de voorlopige dekking is afgegeven (5)"},5]
["Schade","Algemeen"," Bijzonderheden toedracht:\n- Er ontbreken sporen van braak/geweld of er is geen goede beveiliging\n-  Onmogelijke of onwaarschijnlijke modus operandi",{"$f":"Table1[[#This Row],[Indicator]] & \" (\" & Table1[[#This Row],[Risicopunten]] & \")\"","v":" Bijzonderheden toedracht:\n- Er ontbreken sporen van braak/geweld of er is geen goede beveiliging\n-  Onmogelijke of onwaarschijnlijke modus operandi (3)"},3]
["Schade","Algemeen"," Slecht schadeverloop al dan niet in combinatie met een van geval tot geval steeds groter wordende schadelast ",{"$f":"Table1[[#This Row],[Indicator]] & \" (\" & Table1[[#This Row],[Risicopunten]] & \")\"","v":" Slecht schadeverloop al dan niet in combinatie met een van geval tot geval steeds groter wordende schadelast  (5)"},5]
["Schade","Algemeen","Gebleken andere fraude (bijvoorbeeld sociale verzekering)",{"$f":"Table1[[#This Row],[Indicator]] & \" (\" & Table1[[#This Row],[Risicopunten]] & \")\"","v":"Gebleken andere fraude (bijvoorbeeld sociale verzekering) (5)"},5]
["Schade","Algemeen","Strafrechtelijk verleden bij aanvraag polis niet opgegeven",{"$f":"Table1[[#This Row],[Indicator]] & \" (\" & Table1[[#This Row],[Risicopunten]] & \")\"","v":"Strafrechtelijk verleden bij aanvraag polis niet opgegeven (15)"},15]
["Schade","Algemeen","Controle op kredietwaardigheid en faillissement ",{"$f":"Table1[[#This Row],[Indicator]] & \" (\" & Table1[[#This Row],[Risicopunten]] & \")\"","v":"Controle op kredietwaardigheid en faillissement  (3)"},3]
["Schade","Algemeen"," Eén der betrokken maakt melding van vermoedelijke opzet",{"$f":"Table1[[#This Row],[Indicator]] & \" (\" & Table1[[#This Row],[Risicopunten]] & \")\"","v":" Eén der betrokken maakt melding van vermoedelijke opzet (5)"},5]
["Schade","Algemeen","Personen uit de omgeving van verzekeringnemer maken melding van vermoedelijke oplichting",{"$f":"Table1[[#This Row],[Indicator]] & \" (\" & Table1[[#This Row],[Risicopunten]] & \")\"","v":"Personen uit de omgeving van verzekeringnemer maken melding van vermoedelijke oplichting (10)"},10]
["Schade","Algemeen","Verzekerde heeft geen enkele poging ondernomen om de schade te voorkomen of te beperken",{"$f":"Table1[[#This Row],[Indicator]] & \" (\" & Table1[[#This Row],[Risicopunten]] & \")\"","v":"Verzekerde heeft geen enkele poging ondernomen om de schade te voorkomen of te beperken (5)"},5]
["Schade","Algemeen","Tussentijdse wijzigingen van het IBAN-nummer, IBAN nummer staat op andere naam",{"$f":"Table1[[#This Row],[Indicator]] & \" (\" & Table1[[#This Row],[Risicopunten]] & \")\"","v":"Tussentijdse wijzigingen van het IBAN-nummer, IBAN nummer staat op andere naam (5)"},5]
["Schade","Algemeen"," Eis tot vergoeding op inkoopwaarde wanneer marktprijs is gedaald",{"$f":"Table1[[#This Row],[Indicator]] & \" (\" & Table1[[#This Row],[Risicopunten]] & \")\"","v":" Eis tot vergoeding op inkoopwaarde wanneer marktprijs is gedaald (5)"},5]
["Schade","Algemeen"," Verzekerde claimt seizoensgebonden goederen buiten seizoen",{"$f":"Table1[[#This Row],[Indicator]] & \" (\" & Table1[[#This Row],[Risicopunten]] & \")\"","v":" Verzekerde claimt seizoensgebonden goederen buiten seizoen (5)"},5]
["Schade","Algemeen"," Er zijn meer - soortgelijke - polissen afgesloten",{"$f":"Table1[[#This Row],[Indicator]] & \" (\" & Table1[[#This Row],[Risicopunten]] & \")\"","v":" Er zijn meer - soortgelijke - polissen afgesloten (5)"},5]
["Schade","Algemeen"," Verlenging van de dekking wordt te laat gevraagd i.v.m. uitloop bouwtermijn",{"$f":"Table1[[#This Row],[Indicator]] & \" (\" & Table1[[#This Row],[Risicopunten]] & \")\"","v":" Verlenging van de dekking wordt te laat gevraagd i.v.m. uitloop bouwtermijn (5)"},5]
["Schade","Algemeen"," M.b.t. aangifte bij politie:\n− Geen aangifte gedaan bij de politie hoewel polisvoorwaarden dit vereist\n− Claim wijkt (in grote mate) af van proces-verbaal van aangifte bij politie\n− Late aangifte bij politie\n− Er is geen politie bij de aanrijding/aanvaring met forse schade/letsel geweest\n- Er zit een verschil in de aangifte bij de politie en de opgave bij de expert",{"$f":"Table1[[#This Row],[Indicator]] & \" (\" & Table1[[#This Row],[Risicopunten]] & \")\"","v":" M.b.t. aangifte bij politie:\n− Geen aangifte gedaan bij de politie hoewel polisvoorwaarden dit vereist\n− Claim wijkt (in grote mate) af van proces-verbaal van aangifte bij politie\n− Late aangifte bij politie\n− Er is geen politie bij de aanrijding/aanvaring met forse schade/letsel geweest\n- Er zit een verschil in de aangifte bij de politie en de opgave bij de expert (5)"},5]
["Schade","Auto","Kenteken/ RDW:\n- Andere kentekenhouder\n-  Auto heeft een afwijkend (bijv. vervangend) kenteken of is een import auto met een afwijkende BPM\n-  Kenteken staat sinds kort op naam\n- Geen geldig rijbewijs (verificatie via RDW) ",{"$f":"Table1[[#This Row],[Indicator]] & \" (\" & Table1[[#This Row],[Risicopunten]] & \")\"","v":"Kenteken/ RDW:\n- Andere kentekenhouder\n-  Auto heeft een afwijkend (bijv. vervangend) kenteken of is een import auto met een afwijkende BPM\n-  Kenteken staat sinds kort op naam\n- Geen geldig rijbewijs (verificatie via RDW)  (10)"},10]
["Schade","Auto"," Diefstal:\n- auto waarbij alle delen van het kentekenbewijs in de auto lagen, dan wel voor de diefstal zijn zoekgeraakt\n- slechts 1 sleutel ingeleverd of ingeleverde sleutels zijn niet origineel, vaag verhaal over sleuteldiscipline\n-  Ingeschakeld alarm is niet in werking getreden\n- Auto wordt kort voor het einde van de ‘nieuwwaarde verzekerde periode’ ontvreemd ",{"$f":"Table1[[#This Row],[Indicator]] & \" (\" & Table1[[#This Row],[Risicopunten]] & \")\"","v":" Diefstal:\n- auto waarbij alle delen van het kentekenbewijs in de auto lagen, dan wel voor de diefstal zijn zoekgeraakt\n- slechts 1 sleutel ingeleverd of ingeleverde sleutels zijn niet origineel, vaag verhaal over sleuteldiscipline\n-  Ingeschakeld alarm is niet in werking getreden\n- Auto wordt kort voor het einde van de ‘nieuwwaarde verzekerde periode’ ontvreemd  (10)"},10]
["Schade","Auto"," Auto wordt teruggevonden met:\n− Geen enkele beschadiging\n− Onbeschadigde sloten\n− Mechanische defecten (motor/versnellingsbak)\n− Daarin nog aanwezige kostbare voorwerpen/papieren",{"$f":"Table1[[#This Row],[Indicator]] & \" (\" & Table1[[#This Row],[Risicopunten]] & \")\"","v":" Auto wordt teruggevonden met:\n− Geen enkele beschadiging\n− Onbeschadigde sloten\n− Mechanische defecten (motor/versnellingsbak)\n− Daarin nog aanwezige kostbare voorwerpen/papieren (10)"},10]
["Schade","Auto","Er is geen alarmdienst ingeschakeld terwijl de situatie daarom wel vraagt",{"$f":"Table1[[#This Row],[Indicator]] & \" (\" & Table1[[#This Row],[Risicopunten]] & \")\"","v":"Er is geen alarmdienst ingeschakeld terwijl de situatie daarom wel vraagt (5)"},5]
["Schade","Auto","Huurauto:\nEén van de partijen heeft een huurauto\nDe bestuurder van de huurauto bekent zonder meer schuld",{"$f":"Table1[[#This Row],[Indicator]] & \" (\" & Table1[[#This Row],[Risicopunten]] & \")\"","v":"Huurauto:\nEén van de partijen heeft een huurauto\nDe bestuurder van de huurauto bekent zonder meer schuld (5)"},5]
["Schade","Auto"," Plaats van de aanrijding:\n- Op de plaats van de aanrijding zijn geen sporen te vinden\n- De aanrijding heeft plaatsgevonden op een verlaten plaats of privéterrein en in de nachtelijke uren",{"$f":"Table1[[#This Row],[Indicator]] & \" (\" & Table1[[#This Row],[Risicopunten]] & \")\"","v":" Plaats van de aanrijding:\n- Op de plaats van de aanrijding zijn geen sporen te vinden\n- De aanrijding heeft plaatsgevonden op een verlaten plaats of privéterrein en in de nachtelijke uren (5)"},5]
["Schade","Auto"," De schadeauto’s zijn naar dezelfde reparateur gebracht",{"$f":"Table1[[#This Row],[Indicator]] & \" (\" & Table1[[#This Row],[Risicopunten]] & \")\"","v":" De schadeauto’s zijn naar dezelfde reparateur gebracht (5)"},5]
["Schade","Auto","Onduidelijkheid wie de bestuurder is geweest",{"$f":"Table1[[#This Row],[Indicator]] & \" (\" & Table1[[#This Row],[Risicopunten]] & \")\"","v":"Onduidelijkheid wie de bestuurder is geweest (10)"},10]
["Schade","Auto"," Schade:\n- Oude ‘kneus’ tegen dure, nieuwe auto\n- Forse schade waarbij tussen betrokkenen geen botsing plaatsvindt (b.v. uitwijkmanoeuvre)\n-  Het schadebeeld van de betrokken voertuigen komt niet overeen met de toedracht bijvoorbeeld de één zwaar beschadigd, de ander licht beschadigd.\n- Er is zware schade zonder enig persoonlijk letsel",{"$f":"Table1[[#This Row],[Indicator]] & \" (\" & Table1[[#This Row],[Risicopunten]] & \")\"","v":" Schade:\n- Oude ‘kneus’ tegen dure, nieuwe auto\n- Forse schade waarbij tussen betrokkenen geen botsing plaatsvindt (b.v. uitwijkmanoeuvre)\n-  Het schadebeeld van de betrokken voertuigen komt niet overeen met de toedracht bijvoorbeeld de één zwaar beschadigd, de ander licht beschadigd.\n- Er is zware schade zonder enig persoonlijk letsel (10)"},10]
["Schade","Brand","Tweede inbraak/diefstal/beroving/vandalismeschade/ brandschade binnen 1 jaar",{"$f":"Table1[[#This Row],[Indicator]] & \" (\" & Table1[[#This Row],[Risicopunten]] & \")\"","v":"Tweede inbraak/diefstal/beroving/vandalismeschade/ brandschade binnen 1 jaar (5)"},5]
["Schade","Brand","Geclaimd bedrag sieraden en/of geld komt boven maximering uit",{"$f":"Table1[[#This Row],[Indicator]] & \" (\" & Table1[[#This Row],[Risicopunten]] & \")\"","v":"Geclaimd bedrag sieraden en/of geld komt boven maximering uit (5)"},5]
["Schade","Brand","Politie\nEr is geen aangifte gedaan hoewel dit volgens de polisvoorwaarden verplicht is. \nAangifte bij politie niet binnen 24 uur na ontdekken",{"$f":"Table1[[#This Row],[Indicator]] & \" (\" & Table1[[#This Row],[Risicopunten]] & \")\"","v":"Politie\nEr is geen aangifte gedaan hoewel dit volgens de polisvoorwaarden verplicht is. \nAangifte bij politie niet binnen 24 uur na ontdekken (5)"},5]
["Schade","Brand","Zeer gedetailleerde omschrijving goederen bij eerstelijns aangifte",{"$f":"Table1[[#This Row],[Indicator]] & \" (\" & Table1[[#This Row],[Risicopunten]] & \")\"","v":"Zeer gedetailleerde omschrijving goederen bij eerstelijns aangifte (5)"},5]
["Schade","Brand","Pand staat te koop / er is sprake van leegstand",{"$f":"Table1[[#This Row],[Indicator]] & \" (\" & Table1[[#This Row],[Risicopunten]] & \")\"","v":"Pand staat te koop / er is sprake van leegstand (5)"},5]
["Schade","Brand","Recente taxatie. Pand staat leeg / te koop. \nPand niet aangesloten op NUTS-voorziening",{"$f":"Table1[[#This Row],[Indicator]] & \" (\" & Table1[[#This Row],[Risicopunten]] & \")\"","v":"Recente taxatie. Pand staat leeg / te koop. \nPand niet aangesloten op NUTS-voorziening (5)"},5]
["Schade","Brand"," Meerdere brandhaarden aangetroffen",{"$f":"Table1[[#This Row],[Indicator]] & \" (\" & Table1[[#This Row],[Risicopunten]] & \")\"","v":" Meerdere brandhaarden aangetroffen (15)"},15]
["Schade","Brand","De brandoorzaak is dubieus/onbekend",{"$f":"Table1[[#This Row],[Indicator]] & \" (\" & Table1[[#This Row],[Risicopunten]] & \")\"","v":"De brandoorzaak is dubieus/onbekend (15)"},15]
["Schade","Brand"," Bij geval van brandstichting geen sporen van braak aangetroffen",{"$f":"Table1[[#This Row],[Indicator]] & \" (\" & Table1[[#This Row],[Risicopunten]] & \")\"","v":" Bij geval van brandstichting geen sporen van braak aangetroffen (5)"},5]
["Schade","Brand","Het schadepand was ten tijde van het evenement onbewoond en niet onder toezicht geplaatst\nHet pand was niet aangesloten op de nutsbedrijven ",{"$f":"Table1[[#This Row],[Indicator]] & \" (\" & Table1[[#This Row],[Risicopunten]] & \")\"","v":"Het schadepand was ten tijde van het evenement onbewoond en niet onder toezicht geplaatst\nHet pand was niet aangesloten op de nutsbedrijven  (5)"},5]
["Schade","Brand","Er zijn voor de brand zaken verwijderd, zoals persoonlijke bezittingen en huisdieren",{"$f":"Table1[[#This Row],[Indicator]] & \" (\" & Table1[[#This Row],[Risicopunten]] & \")\"","v":"Er zijn voor de brand zaken verwijderd, zoals persoonlijke bezittingen en huisdieren (10)"},10]
["Schade","Brand"," Het bedrijf wil gaan uitbreiden/moderniseren",{"$f":"Table1[[#This Row],[Indicator]] & \" (\" & Table1[[#This Row],[Risicopunten]] & \")\"","v":" Het bedrijf wil gaan uitbreiden/moderniseren (3)"},3]
["Schade","Brand"," Brand wordt niet door brandalarminstallatie gedetecteerd",{"$f":"Table1[[#This Row],[Indicator]] & \" (\" & Table1[[#This Row],[Risicopunten]] & \")\"","v":" Brand wordt niet door brandalarminstallatie gedetecteerd (5)"},5]
["Schade","Brand"," Alarminstallatie/ beveiliging stond (toevallig) niet ingeschakeld",{"$f":"Table1[[#This Row],[Indicator]] & \" (\" & Table1[[#This Row],[Risicopunten]] & \")\"","v":" Alarminstallatie/ beveiliging stond (toevallig) niet ingeschakeld (5)"},5]
["Schade","Brand"," Alarminstallatie stond wel ingeschakeld maar was ‘afgeschermd’ door voorraden",{"$f":"Table1[[#This Row],[Indicator]] & \" (\" & Table1[[#This Row],[Risicopunten]] & \")\"","v":" Alarminstallatie stond wel ingeschakeld maar was ‘afgeschermd’ door voorraden (5)"},5]
["Schade","Brand"," De brand wordt ontdekt, kort na het tijdstip waarop verzekerde of een ander het pand heeft verlaten",{"$f":"Table1[[#This Row],[Indicator]] & \" (\" & Table1[[#This Row],[Risicopunten]] & \")\"","v":" De brand wordt ontdekt, kort na het tijdstip waarop verzekerde of een ander het pand heeft verlaten (5)"},5]
["Schade","Brand"," Schaderaming ligt dicht bij verzekerde som, terwijl al duidelijk is dat de werkelijke schade veel lager \nis",{"$f":"Table1[[#This Row],[Indicator]] & \" (\" & Table1[[#This Row],[Risicopunten]] & \")\"","v":" Schaderaming ligt dicht bij verzekerde som, terwijl al duidelijk is dat de werkelijke schade veel lager \nis (3)"},3]
["Schade","Brand"," Verzekering op vaste taxatie, terwijl al snel bij de claim blijkt dat de taxatie sterk bovenmatig is",{"$f":"Table1[[#This Row],[Indicator]] & \" (\" & Table1[[#This Row],[Risicopunten]] & \")\"","v":" Verzekering op vaste taxatie, terwijl al snel bij de claim blijkt dat de taxatie sterk bovenmatig is (5)"},5]
["Schade","Brand"," Brand brak uit kort na uitvoering preventiemaatregelen/kort na bevestiging dat preventiemaatregelen zijn uitgevoerd (ontlopen van warranty)",{"$f":"Table1[[#This Row],[Indicator]] & \" (\" & Table1[[#This Row],[Risicopunten]] & \")\"","v":" Brand brak uit kort na uitvoering preventiemaatregelen/kort na bevestiging dat preventiemaatregelen zijn uitgevoerd (ontlopen van warranty) (5)"},5]
["Schade","Brand","Gebouw/ inventaris/ inboedel verkeerde in zeer slechte staat",{"$f":"Table1[[#This Row],[Indicator]] & \" (\" & Table1[[#This Row],[Risicopunten]] & \")\"","v":"Gebouw/ inventaris/ inboedel verkeerde in zeer slechte staat (5)"},5]
["Schade","Brand"," Criminele activiteiten zoals:\n- Hennepkwekerij in het pand \n - Laboratorium synthetische drugs in het pand",{"$f":"Table1[[#This Row],[Indicator]] & \" (\" & Table1[[#This Row],[Risicopunten]] & \")\"","v":" Criminele activiteiten zoals:\n- Hennepkwekerij in het pand \n - Laboratorium synthetische drugs in het pand (15)"},15]
["Schade","Ladingdiefstal","Geknoei met (lading) papieren en documenten",{"$f":"Table1[[#This Row],[Indicator]] & \" (\" & Table1[[#This Row],[Risicopunten]] & \")\"","v":"Geknoei met (lading) papieren en documenten (10)"},10]
["Schade","Ladingdiefstal","Samenspanning tussen belanghebbenden, die bewerkstelligen dat:\n− Andere goederen in containers worden geladen dan in de documenten staan vermeld\n− Lege containers over boord geslagen, met naar verluid waardevolle goederen\n− Minder goederen geladen (en dus gelost) dan vermeld in de documenten\n− Gewicht van laagwaardige goederen wordt toegevoegd aan kostbare goederen\n− Overdracht lading plaats vindt na sluitingstijd geadresseerde\n− De lading moet het weekend overstaan",{"$f":"Table1[[#This Row],[Indicator]] & \" (\" & Table1[[#This Row],[Risicopunten]] & \")\"","v":"Samenspanning tussen belanghebbenden, die bewerkstelligen dat:\n− Andere goederen in containers worden geladen dan in de documenten staan vermeld\n− Lege containers over boord geslagen, met naar verluid waardevolle goederen\n− Minder goederen geladen (en dus gelost) dan vermeld in de documenten\n− Gewicht van laagwaardige goederen wordt toegevoegd aan kostbare goederen\n− Overdracht lading plaats vindt na sluitingstijd geadresseerde\n− De lading moet het weekend overstaan (10)"},10]
["Schade","Ladingdiefstal","Opvallende afwijkingen van het normale patroon:\n− Wijzigingen in (vervoers)documenten\n− Bepaalde documenten komen niet boven water\n− Verdwijning van schepen\n− Onlogische reis in relatie tot de lading\n− Medeverzekering van extreem hoge imaginaire winst\n− Schadebeeld onwaarschijnlijk\n− Gebruik oude schepen voor dure lading\n− Onduidelijkheid wie documentair claimgerechtigde is\n− Verschillende verklaringen van de toedracht, na afwijzing\n− Onverklaarde manco's bij EDI vrachtbrieven\n− Bij totaaldiefstal ‘achterlaten’ van drie colli, om clausule G23 te omzeilen",{"$f":"Table1[[#This Row],[Indicator]] & \" (\" & Table1[[#This Row],[Risicopunten]] & \")\"","v":"Opvallende afwijkingen van het normale patroon:\n− Wijzigingen in (vervoers)documenten\n− Bepaalde documenten komen niet boven water\n− Verdwijning van schepen\n− Onlogische reis in relatie tot de lading\n− Medeverzekering van extreem hoge imaginaire winst\n− Schadebeeld onwaarschijnlijk\n− Gebruik oude schepen voor dure lading\n− Onduidelijkheid wie documentair claimgerechtigde is\n− Verschillende verklaringen van de toedracht, na afwijzing\n− Onverklaarde manco's bij EDI vrachtbrieven\n− Bij totaaldiefstal ‘achterlaten’ van drie colli, om clausule G23 te omzeilen (10)"},10]
["Schade","Notacontrole","Van kostbare zaken heeft men geen bewijsstukken in tegenstelling tot goedkope(re) goederen",{"$f":"Table1[[#This Row],[Indicator]] & \" (\" & Table1[[#This Row],[Risicopunten]] & \")\"","v":"Van kostbare zaken heeft men geen bewijsstukken in tegenstelling tot goedkope(re) goederen (5)"},5]
["Schade","Notacontrole","Zijn er penwijzigingen, doorhalingen of digitale aanpassingen aangebracht op nota’s of facturen",{"$f":"Table1[[#This Row],[Indicator]] & \" (\" & Table1[[#This Row],[Risicopunten]] & \")\"","v":"Zijn er penwijzigingen, doorhalingen of digitale aanpassingen aangebracht op nota’s of facturen (5)"},5]
["Schade","Notacontrole"," Verschil in handschrift of lettertype op nota’s van dezelfde leverancier",{"$f":"Table1[[#This Row],[Indicator]] & \" (\" & Table1[[#This Row],[Risicopunten]] & \")\"","v":" Verschil in handschrift of lettertype op nota’s van dezelfde leverancier (5)"},5]
["Schade","Notacontrole","Kloppen datum of tijdstip van de nota/ factuur denk aan:\n-  Datum of tijdstip (denk aan zon- en feestdagen en openingstijden!)",{"$f":"Table1[[#This Row],[Indicator]] & \" (\" & Table1[[#This Row],[Risicopunten]] & \")\"","v":"Kloppen datum of tijdstip van de nota/ factuur denk aan:\n-  Datum of tijdstip (denk aan zon- en feestdagen en openingstijden!) (5)"},5]
["Schade","Notacontrole"," Nota’s met verschillende data zijn opeenvolgend genummerd",{"$f":"Table1[[#This Row],[Indicator]] & \" (\" & Table1[[#This Row],[Risicopunten]] & \")\"","v":" Nota’s met verschillende data zijn opeenvolgend genummerd (5)"},5]
["Schade","Notacontrole","Ontbreken er logo's op de nota",{"$f":"Table1[[#This Row],[Indicator]] & \" (\" & Table1[[#This Row],[Risicopunten]] & \")\"","v":"Ontbreken er logo's op de nota (5)"},5]
["Schade","Notacontrole","Is een handgeschreven nota wel reëel gezien aard van de goederen",{"$f":"Table1[[#This Row],[Indicator]] & \" (\" & Table1[[#This Row],[Risicopunten]] & \")\"","v":"Is een handgeschreven nota wel reëel gezien aard van de goederen (5)"},5]
["Schade","Notacontrole"," Op de nota staat vermeld ‘pro forma’ of ‘offerte’",{"$f":"Table1[[#This Row],[Indicator]] & \" (\" & Table1[[#This Row],[Risicopunten]] & \")\"","v":" Op de nota staat vermeld ‘pro forma’ of ‘offerte’ (5)"},5]
["Schade","Notacontrole","Metadata op facturen, controle of factuur is aangepast",{"$f":"Table1[[#This Row],[Indicator]] & \" (\" & Table1[[#This Row],[Risicopunten]] & \")\"","v":"Metadata op facturen, controle of factuur is aangepast (10)"},10]
["Schade","Notacontrole","Er zijn penwijzigingen / doorhalingen aangebracht op nota's of facturen\n- Nota's met verschillende data zijn opeenvolgend genummerd.  \n- Bedragen staan niet netjes onder elkaar;\n- Kvk-nr  is onjuist;\n- Bedrijf is opgeheven;\n- Grote bedragen zijn contant betaald.",{"$f":"Table1[[#This Row],[Indicator]] & \" (\" & Table1[[#This Row],[Risicopunten]] & \")\"","v":"Er zijn penwijzigingen / doorhalingen aangebracht op nota's of facturen\n- Nota's met verschillende data zijn opeenvolgend genummerd.  \n- Bedragen staan niet netjes onder elkaar;\n- Kvk-nr  is onjuist;\n- Bedrijf is opgeheven;\n- Grote bedragen zijn contant betaald. (10)"},10]
["Schade","Notacontrole"," Nota’s staan niet op naam van de verzekerde. Denk aan een andere naam of de naam van de tegenpartij of deze lijkt later te zijn ingevuld",{"$f":"Table1[[#This Row],[Indicator]] & \" (\" & Table1[[#This Row],[Risicopunten]] & \")\"","v":" Nota’s staan niet op naam van de verzekerde. Denk aan een andere naam of de naam van de tegenpartij of deze lijkt later te zijn ingevuld (5)"},5]
["Schade","Notacontrole"," Nota is niet of slecht gespecificeerd, onduidelijke c.q. onjuiste omschrijvingen",{"$f":"Table1[[#This Row],[Indicator]] & \" (\" & Table1[[#This Row],[Risicopunten]] & \")\"","v":" Nota is niet of slecht gespecificeerd, onduidelijke c.q. onjuiste omschrijvingen (5)"},5]
["Schade","Pleziervaartuigverzekeringen","Bij acceptatie altijd motornummer opvragen om bij diefstal discussie over bouwjaar te voorkomen",{"$f":"Table1[[#This Row],[Indicator]] & \" (\" & Table1[[#This Row],[Risicopunten]] & \")\"","v":"Bij acceptatie altijd motornummer opvragen om bij diefstal discussie over bouwjaar te voorkomen (5)"},5]
["Schade","Pleziervaartuigverzekeringen","T.a.v. het registratiebewijs (indien van toepassing)\n− Kloppen de vermelde gegevens op het registratiebewijs met de gegevens op het \naanvraagformulier van de verzekeraar? (Kijk o.a. naar het hullnummer* en het serienummer van \nde boot)\n− Hoe verhoudt zich de datum van de tenaamstelling tot de aankoopdatum van de boot en de \ndatum van de aanvraag van de verzekering?\n* Hull Identification Number (internationaal bouw e/o rompnummer)\nDe HIN-code bestaat uit 14 posities. Bijvoorbeeld: NL-HXA 12345 A 898\n• NL: landencode\n• HXA: fabriekscode\n• 12345: serienummer\n9\nAlleen bestemd voor intern gebruik\n• A: productiemaand (enkel A tot L is mogelijk)\n• 8: productiejaar\n• 98: modeljaar",{"$f":"Table1[[#This Row],[Indicator]] & \" (\" & Table1[[#This Row],[Risicopunten]] & \")\"","v":"T.a.v. het registratiebewijs (indien van toepassing)\n− Kloppen de vermelde gegevens op het registratiebewijs met de gegevens op het \naanvraagformulier van de verzekeraar? (Kijk o.a. naar het hullnummer* en het serienummer van \nde boot)\n− Hoe verhoudt zich de datum van de tenaamstelling tot de aankoopdatum van de boot en de \ndatum van de aanvraag van de verzekering?\n* Hull Identification Number (internationaal bouw e/o rompnummer)\nDe HIN-code bestaat uit 14 posities. Bijvoorbeeld: NL-HXA 12345 A 898\n• NL: landencode\n• HXA: fabriekscode\n• 12345: serienummer\n9\nAlleen bestemd voor intern gebruik\n• A: productiemaand (enkel A tot L is mogelijk)\n• 8: productiejaar\n• 98: modeljaar (10)"},10]
["Schade","Pleziervaartuigverzekeringen","M.b.t. schadebehandeling: afrekening liggeld haven/stallingsadres checken (doorgaans is de prijs \nmede afhankelijk van de lengte van de boot. Zijn de ‘’meters liggeld’’ te herleiden tot de verzekerde \nen gestolen boot?)",{"$f":"Table1[[#This Row],[Indicator]] & \" (\" & Table1[[#This Row],[Risicopunten]] & \")\"","v":"M.b.t. schadebehandeling: afrekening liggeld haven/stallingsadres checken (doorgaans is de prijs \nmede afhankelijk van de lengte van de boot. Zijn de ‘’meters liggeld’’ te herleiden tot de verzekerde \nen gestolen boot?) (7)"},7]
["Schade","Pleziervaartuigverzekeringen","Specifieke indicatoren m.b.t. WA schade\n− Eén der partijen heeft een huurboot\n− Schipper van huurboot bekent zonder meer schuld\n− De aanvaring vond plaats op een verlaten plek zonder getuigen\n− Het schadebeeld aan de betrokken vaartuigen komt niet overeen met de verklaring\n− Onduidelijk wie de schipper is geweest\n− Oude boot tegen dure nieuwe boot",{"$f":"Table1[[#This Row],[Indicator]] & \" (\" & Table1[[#This Row],[Risicopunten]] & \")\"","v":"Specifieke indicatoren m.b.t. WA schade\n− Eén der partijen heeft een huurboot\n− Schipper van huurboot bekent zonder meer schuld\n− De aanvaring vond plaats op een verlaten plek zonder getuigen\n− Het schadebeeld aan de betrokken vaartuigen komt niet overeen met de verklaring\n− Onduidelijk wie de schipper is geweest\n− Oude boot tegen dure nieuwe boot (10)"},10]
["Schade","Pleziervaartuigverzekeringen","De boot werd al verplaatst of gerepareerd",{"$f":"Table1[[#This Row],[Indicator]] & \" (\" & Table1[[#This Row],[Risicopunten]] & \")\"","v":"De boot werd al verplaatst of gerepareerd (5)"},5]
["Schade","Reis"," Er worden te veel goederen geclaimd in verhouding tot het aantal stuks bagage (koffers)",{"$f":"Table1[[#This Row],[Indicator]] & \" (\" & Table1[[#This Row],[Risicopunten]] & \")\"","v":" Er worden te veel goederen geclaimd in verhouding tot het aantal stuks bagage (koffers) (5)"},5]
["Schade","Reis","Nota’s:\n− Ontvangen nota of verklaring is in een andere taal opgesteld dan gebruikelijk voor het land van herkomst, bv een Engelstalige nota afkomstig uit Italië\n− Verklaring ambassade al geregeld",{"$f":"Table1[[#This Row],[Indicator]] & \" (\" & Table1[[#This Row],[Risicopunten]] & \")\"","v":"Nota’s:\n− Ontvangen nota of verklaring is in een andere taal opgesteld dan gebruikelijk voor het land van herkomst, bv een Engelstalige nota afkomstig uit Italië\n− Verklaring ambassade al geregeld (5)"},5]
["Schade","Reis"," Melding schade:\n− Geruime tijd na afloop van de reis\n− Geen melding gedaan via de alarmcentrale",{"$f":"Table1[[#This Row],[Indicator]] & \" (\" & Table1[[#This Row],[Risicopunten]] & \")\"","v":" Melding schade:\n− Geruime tijd na afloop van de reis\n− Geen melding gedaan via de alarmcentrale (5)"},5]
["Schade","Technische verzekeringen","Men werkt niet mee aan het verkrijgen van duidelijkheid over het moment van opleveren",{"$f":"Table1[[#This Row],[Indicator]] & \" (\" & Table1[[#This Row],[Risicopunten]] & \")\"","v":"Men werkt niet mee aan het verkrijgen van duidelijkheid over het moment van opleveren (15)"},15]
["Schade","Technische verzekeringen"," Weglakken van kortingen",{"$f":"Table1[[#This Row],[Indicator]] & \" (\" & Table1[[#This Row],[Risicopunten]] & \")\"","v":" Weglakken van kortingen (10)"},10]
["Schade","Technische verzekeringen","Grootafnemers overleggen nota’s zonder kortingen",{"$f":"Table1[[#This Row],[Indicator]] & \" (\" & Table1[[#This Row],[Risicopunten]] & \")\"","v":"Grootafnemers overleggen nota’s zonder kortingen (3)"},3]
["Schade","Technische verzekeringen"," Machinebreuk, opruimactie voor onderdelen, verzekerde levert wel de debet nota maar niet de \ncreditnota",{"$f":"Table1[[#This Row],[Indicator]] & \" (\" & Table1[[#This Row],[Risicopunten]] & \")\"","v":" Machinebreuk, opruimactie voor onderdelen, verzekerde levert wel de debet nota maar niet de \ncreditnota (5)"},5]
["Schade","Technische verzekeringen"," Onvoldoende medewerking met regres",{"$f":"Table1[[#This Row],[Indicator]] & \" (\" & Table1[[#This Row],[Risicopunten]] & \")\"","v":" Onvoldoende medewerking met regres (5)"},5]
["Schade","Technische verzekeringen"," Medeverzekering van extreem hoge imaginaire winst",{"$f":"Table1[[#This Row],[Indicator]] & \" (\" & Table1[[#This Row],[Risicopunten]] & \")\"","v":" Medeverzekering van extreem hoge imaginaire winst (5)"},5]
["Schade","Technische verzekeringen","Kostenstructuur van het bedrijf is onduidelijk",{"$f":"Table1[[#This Row],[Indicator]] & \" (\" & Table1[[#This Row],[Risicopunten]] & \")\"","v":"Kostenstructuur van het bedrijf is onduidelijk (3)"},3]
["Schade","Transport"," Veel goederen gestolen in het kader van de “beschikbare” tijd",{"$f":"Table1[[#This Row],[Indicator]] & \" (\" & Table1[[#This Row],[Risicopunten]] & \")\"","v":" Veel goederen gestolen in het kader van de “beschikbare” tijd (10)"},10]
["Schade","Transport","Ompakken van stukgoed naar pallet of andere grote volume eenheid",{"$f":"Table1[[#This Row],[Indicator]] & \" (\" & Table1[[#This Row],[Risicopunten]] & \")\"","v":"Ompakken van stukgoed naar pallet of andere grote volume eenheid (3)"},3]
["Schade","Transport","Andere partij, dan degene die de polis geëndosseerd heeft gekregen, claimt",{"$f":"Table1[[#This Row],[Indicator]] & \" (\" & Table1[[#This Row],[Risicopunten]] & \")\"","v":"Andere partij, dan degene die de polis geëndosseerd heeft gekregen, claimt (5)"},5]
["Schade","Transport","Bewijsstukken worden onnodig lang na de schademelding overgedragen",{"$f":"Table1[[#This Row],[Indicator]] & \" (\" & Table1[[#This Row],[Risicopunten]] & \")\"","v":"Bewijsstukken worden onnodig lang na de schademelding overgedragen (10)"},10]
["Schade","Transport"," Fraude door derden",{"$f":"Table1[[#This Row],[Indicator]] & \" (\" & Table1[[#This Row],[Risicopunten]] & \")\"","v":" Fraude door derden (15)"},15]
["Schade","Transport","Vervoer van goederen naar de eindbestemming die deze goederen niet kan verwerken \n(zowel voor wat betreft havenfaciliteiten als ook verwerkingsfaciliteiten) naar een eindbestemming \nwaar voor deze goederen geen markt is",{"$f":"Table1[[#This Row],[Indicator]] & \" (\" & Table1[[#This Row],[Risicopunten]] & \")\"","v":"Vervoer van goederen naar de eindbestemming die deze goederen niet kan verwerken \n(zowel voor wat betreft havenfaciliteiten als ook verwerkingsfaciliteiten) naar een eindbestemming \nwaar voor deze goederen geen markt is (3)"},3]
["Schade","Transport","Overwaarderen van tweedehands goederen",{"$f":"Table1[[#This Row],[Indicator]] & \" (\" & Table1[[#This Row],[Risicopunten]] & \")\"","v":"Overwaarderen van tweedehands goederen (10)"},10]
["Schade","Transport","Het niet meewerken van tussenpersonen",{"$f":"Table1[[#This Row],[Indicator]] & \" (\" & Table1[[#This Row],[Risicopunten]] & \")\"","v":"Het niet meewerken van tussenpersonen (5)"},5]
["Schade","Transport","Geknoei met en/of het ontbreken van tachograafschijven",{"$f":"Table1[[#This Row],[Indicator]] & \" (\" & Table1[[#This Row],[Risicopunten]] & \")\"","v":"Geknoei met en/of het ontbreken van tachograafschijven (10)"},10]
["Schade","Transport","De marktprijs is niet gelijk aan de prijs/ verzekerd bedrag",{"$f":"Table1[[#This Row],[Indicator]] & \" (\" & Table1[[#This Row],[Risicopunten]] & \")\"","v":"De marktprijs is niet gelijk aan de prijs/ verzekerd bedrag (3)"},3]
["Schade","Transport"," Volume/gewicht ten opzichte van werkelijk gewicht ",{"$f":"Table1[[#This Row],[Indicator]] & \" (\" & Table1[[#This Row],[Risicopunten]] & \")\"","v":" Volume/gewicht ten opzichte van werkelijk gewicht  (7)"},7]
["Schade","Transport"," Volume/gewicht ten opzichte van vervoerde goederen",{"$f":"Table1[[#This Row],[Indicator]] & \" (\" & Table1[[#This Row],[Risicopunten]] & \")\"","v":" Volume/gewicht ten opzichte van vervoerde goederen (7)"},7]
["Schade","Transport"," Claim zonder bewijsstukken en direct verrekend",{"$f":"Table1[[#This Row],[Indicator]] & \" (\" & Table1[[#This Row],[Risicopunten]] & \")\"","v":" Claim zonder bewijsstukken en direct verrekend (10)"},10]
["Schade","Transport"," Papieren/documenten voor de chauffeur in andere handen gekomen dan de oorspronkelijke partij",{"$f":"Table1[[#This Row],[Indicator]] & \" (\" & Table1[[#This Row],[Risicopunten]] & \")\"","v":" Papieren/documenten voor de chauffeur in andere handen gekomen dan de oorspronkelijke partij (15)"},15]
["Schade","Vervoerdersaansprakelijkheid","Gewicht van laagwaardige zaken wordt toegevoegd aan kostbare zaken ",{"$f":"Table1[[#This Row],[Indicator]] & \" (\" & Table1[[#This Row],[Risicopunten]] & \")\"","v":"Gewicht van laagwaardige zaken wordt toegevoegd aan kostbare zaken  (3)"},3]
["Schade","Vervoerdersaansprakelijkheid","Overdracht van lading vindt plaats na sluitingstijd geadresseerde ",{"$f":"Table1[[#This Row],[Indicator]] & \" (\" & Table1[[#This Row],[Risicopunten]] & \")\"","v":"Overdracht van lading vindt plaats na sluitingstijd geadresseerde  (7)"},7]
["Schade","Vervoerdersaansprakelijkheid","De lading moet het weekend overstaan ",{"$f":"Table1[[#This Row],[Indicator]] & \" (\" & Table1[[#This Row],[Risicopunten]] & \")\"","v":"De lading moet het weekend overstaan  (3)"},3]
["Schade","Vervoerdersaansprakelijkheid","Onlogisch transport in relatie tot de lading ",{"$f":"Table1[[#This Row],[Indicator]] & \" (\" & Table1[[#This Row],[Risicopunten]] & \")\"","v":"Onlogisch transport in relatie tot de lading  (10)"},10]
["Schade","Vervoerdersaansprakelijkheid","Andere goederen in containers geladen dan in de documenten staat vermeld ",{"$f":"Table1[[#This Row],[Indicator]] & \" (\" & Table1[[#This Row],[Risicopunten]] & \")\"","v":"Andere goederen in containers geladen dan in de documenten staat vermeld  (10)"},10]
["Schade","Vervoerdersaansprakelijkheid","Bij diefstal ‘achterblijven’ van drie colli’s, om clausule G23 te omzeilen",{"$f":"Table1[[#This Row],[Indicator]] & \" (\" & Table1[[#This Row],[Risicopunten]] & \")\"","v":"Bij diefstal ‘achterblijven’ van drie colli’s, om clausule G23 te omzeilen (15)"},15]
["Schade","Vervoerdersaansprakelijkheid","Verschillende verklaringen van de toedracht, na afwijzing",{"$f":"Table1[[#This Row],[Indicator]] & \" (\" & Table1[[#This Row],[Risicopunten]] & \")\"","v":"Verschillende verklaringen van de toedracht, na afwijzing (15)"},15]
["Schade","Vervoerdersaansprakelijkheid","Startende bedrijven met hoge omzetten (checken bij acceptatie of deze al voorkomt) 7",{"$f":"Table1[[#This Row],[Indicator]] & \" (\" & Table1[[#This Row],[Risicopunten]] & \")\"","v":"Startende bedrijven met hoge omzetten (checken bij acceptatie of deze al voorkomt) 7 (7)"},7]
["Schade","Vervoerdersaansprakelijkheid","Onduidelijkheid wie documentair claimgerechtigde is",{"$f":"Table1[[#This Row],[Indicator]] & \" (\" & Table1[[#This Row],[Risicopunten]] & \")\"","v":"Onduidelijkheid wie documentair claimgerechtigde is (10)"},10]
["Schade","Vervoerdersaansprakelijkheid","Originele documenten ontbreken/ zijn noodzakelijk voor schadebehandeling",{"$f":"Table1[[#This Row],[Indicator]] & \" (\" & Table1[[#This Row],[Risicopunten]] & \")\"","v":"Originele documenten ontbreken/ zijn noodzakelijk voor schadebehandeling (10)"},10]
["Schade","Vervoerdersaansprakelijkheid","Wijzigingen in (vervoers)documenten",{"$f":"Table1[[#This Row],[Indicator]] & \" (\" & Table1[[#This Row],[Risicopunten]] & \")\"","v":"Wijzigingen in (vervoers)documenten (7)"},7]
["Schade","Vervoerdersaansprakelijkheid","Minder goederen geladen (en dus gelost) dan vermeld in de documenten",{"$f":"Table1[[#This Row],[Indicator]] & \" (\" & Table1[[#This Row],[Risicopunten]] & \")\"","v":"Minder goederen geladen (en dus gelost) dan vermeld in de documenten (7)"},7]

{"sheet":"Tool","index":1,"n_rows":0,"n_cols":0,"rows_kept":0,"cut":false,"hidden":false,"merged":[]}